bitfinex/quotes_ETHUSD_20240701
["timestamp","ask_amount","ask_price","bid_price","bid_amount"]
[1719872602171,0.579841,3449.2,3448.1,2.90011]
[1719872602484,0.17269965,3449.1,3448.2,2.90005]
[1719872602854,2.89907,3449.4,3448.2,2.90005]
[1719872603057,0.17274788,3449.0,3448.3,0.05799177]
[1719872603375,2.89914,3449.3,3448.3,0.05799177]
[1719872603577,0.17274788,3448.9,3448.3,2.89997]
[1719872603775,3.0,3449.5,3448.3,3.5379767]
[1719872604479,0.17280333,3449.4,3448.3,3.5379767]
[1719872604838,2.89916,3449.3,3448.3,3.5379767]
[1719872605052,3.0,3449.5,3448.4,2.95785806]
[1719872605234,0.17280333,3449.2,3448.4,2.95785806]
[1719872605441,3.0,3449.5,3448.4,3.60744954]
[1719872605939,0.17280333,3449.4,3448.4,3.60744954]
[1719872606339,0.17280333,3449.4,3448.0,2.90022]
[1719872606971,2.89933,3449.1,3448.1,2.90014]
[1719872607687,0.1728395,3449.0,3448.1,2.90014]
[1719872607891,2.89948,3448.9,3447.6,3.0]
[1719872608091,2.90004,3448.3,3447.1,2.90093]
[1719872608455,2.90032,3447.9,3447.0,2.90107]
[1719872608848,0.17302037,3447.8,3447.1,2.90097]
[1719872609175,0.17302037,3447.7,3447.5,2.90064]
[1719872609380,0.17302037,3447.7,3447.6,2.95855911]
[1719872609579,2.8996,3448.8,3447.8,2.90036]
[1719872609795,0.16703145,3448.7,3447.9,0.05799759]
[1719872609955,3.06667145,3448.7,3447.8,2.90036]
[1719872610285,3.06667145,3448.7,3447.7,2.90041]
[1719872610483,3.06667145,3448.7,3447.8,2.90038]
[1719872611092,3.06667145,3448.7,3447.8,3.53906499]
[1719872611384,0.16703145,3448.7,3447.9,2.90028]
[1719872611759,3.06671145,3448.7,3447.9,2.90028]
[1719872611952,3.4017117,3448.6,3447.2,2.349]
[1719872612190,3.56874972,3448.5,3447.5,2.90062]
[1719872612393,3.56874972,3448.5,3447.3,2.90081]
[1719872612394,2.8999,3448.4,3447.3,2.90081]
[1719872612700,0.95215243,3448.5,3446.9,3.1195146]
[1719872612701,4.2836344,3447.9,3447.1,2.90098]
[1719872612906,4.28346339,3447.9,3447.1,2.90098]
[1719872613059,0.50206009,3447.8,3447.1,2.90098]
[1719872613394,2.05221792,3447.8,3447.0,2.90106]
[1719872613554,1.38314339,3447.4,3447.0,2.90106]
[1719872613755,0.66906727,3447.3,3447.1,2.90096]
[1719872613956,0.66906727,3447.3,3446.9,0.1195146]
[1719872613957,0.50207439,3447.2,3446.9,0.1195146]
[1719872614180,0.66901357,3447.1,3446.9,0.1195146]
[1719872614396,0.50207439,3447.0,3446.9,0.1195146]
[1719872614887,0.66901357,3447.0,3446.9,0.1195146]
[1719872615790,0.66911248,3447.0,3446.9,0.1195146]
[1719872616009,0.16693918,3447.0,3446.9,0.1195146]
[1719872616160,0.66911252,3447.0,3446.9,0.1195146]
[1719872616357,4.21727677,3447.0,3446.9,0.1195146]
[1719872616580,2.9012,3446.9,3446.6,0.04891926]
[1719872616768,2.90132,3446.7,3446.6,0.04891926]
[1719872616975,6.47157289,3446.7,3446.6,0.04891926]
[1719872617157,6.47157289,3446.7,3446.3,0.005]
[1719872617158,1.5161,3446.2,3443.8,2.90376]
[1719872617370,7.143,3445.6,3443.2,1.162027]
[1719872617594,2.90309,3444.6,3443.6,2.90387]
[1719872617917,3.40530481,3444.6,3443.7,0.05807112]
[1719872618219,3.40530481,3444.6,3443.5,3.0235046]
[1719872618220,0.66862902,3444.6,3443.6,2.90389]
[1719872618498,0.66862902,3444.6,3443.5,0.1195146]
[1719872618699,0.66862902,3444.6,3443.7,2.90377]
[1719872618855,0.16641421,3444.6,3443.8,0.05806941]
[1719872619056,0.50255762,3444.6,3444.1,2.9035]
[1719872619362,0.66814002,3444.6,3443.5,3.1195146]
[1719872619565,0.66814002,3444.6,3444.5,2.9113103]
[1719872619876,0.50250362,3444.6,3444.5,0.29927133]
[1719872620083,0.50250362,3444.6,3444.5,6.10561133]
[1719872620284,2.90176,3446.2,3445.1,2.90267]
[1719872620487,2.90166,3446.3,3445.4,2.90238]
[1719872620693,2.90142,3446.6,3445.5,2.96035759]
[1719872620866,0.64709425,3447.0,3445.7,2.90215]
[1719872620867,2.90124,3446.8,3445.7,2.90215]
[1719872621088,2.90124,3446.8,3445.6,0.58627376]
[1719872621089,2.90132,3446.7,3445.8,2.9601032]
[1719872621369,3.54816425,3447.0,3445.6,0.58627376]
[1719872621370,2.90142,3446.6,3445.6,0.58627376]
[1719872621587,2.90142,3446.6,3445.6,5.8045]
[1719872621786,2.90142,3446.6,3445.7,2.90215]
[1719872621987,2.90142,3446.6,3445.4,3.0]
[1719872622191,0.64709425,3447.0,3445.2,2.90258]
[1719872622192,2.90151,3446.5,3445.3,3.0]
[1719872622362,1.38243624,3445.4,3445.3,5.90248]
[1719872622564,1.38243624,3445.4,3445.3,3.590248]
[1719872622866,2.90185,3446.1,3445.2,3.0]
[1719872623174,2.90185,3446.1,3445.3,3.0]
[1719872623385,2.90209,3445.8,3444.9,6.10105]
[1719872623596,1.38230953,3445.2,3445.0,3.0]
[1719872623801,1.38230953,3445.1,3445.0,5.90275]
[1719872624127,1.38230953,3445.1,3445.0,6.812855]
[1719872625400,2.90193,3446.0,3445.1,2.90264]
[1719872625698,0.16029945,3445.9,3445.1,2.90264]
[1719872625875,2.90209,3445.8,3445.0,3.910105]
[1719872626083,2.90218,3445.7,3444.6,2.90307]
[1719872626289,0.16029945,3445.7,3444.5,0.0081403]
[1719872626584,0.16039982,3445.6,3444.5,0.0081403]
[1719872626919,2.90287,3444.9,3444.5,0.0081403]
[1719872627270,2.90294,3444.8,3444.5,0.0081403]
[1719872627468,3.06314645,3444.8,3444.5,0.0081403]
[1719872627709,0.16020645,3444.8,3444.5,0.0081403]
[1719872628219,0.16011584,3444.7,3444.5,0.0081403]
[1719872628375,3.0117,3445.0,3444.5,0.0081403]
[1719872628577,2.90309,3444.6,3444.5,0.0081403]
[1719872629091,0.15984403,3444.6,3444.5,0.0081403]
[1719872629385,0.15978036,3444.6,3444.5,0.0081403]
[1719872629598,2.90271,3445.1,3444.5,0.0081403]
[1719872629838,0.15977791,3445.0,3444.5,0.0081403]
[1719872630018,2.90231,3445.6,3444.6,2.90308]
[1719872630317,1.54184033,3444.9,3444.7,3.19411203]
[1719872630627,2.90224,3445.7,3444.8,2.90291]
[1719872630775,0.50243135,3445.6,3444.8,2.90291]
[1719872630975,1.38214805,3445.0,3444.9,2.90284]
[1719872631421,1.88456001,3445.0,3444.9,2.90284]
[1719872631910,0.50240545,3445.0,3444.9,2.90284]
[1719872632619,1.3821055,3445.0,3444.9,2.90284]
[1719872633212,1.00481091,3446.9,3445.3,3.0]
[1719872633421,5.77677657,3446.8,3445.4,5.349]
[1719872633623,7.40775854,3448.4,3446.0,2.90188]
[1719872633624,5.77677657,3446.7,3446.0,2.90188]
[1719872633919,0.50232839,3446.6,3445.9,2.90193]
[1719872634076,2.90125,3446.8,3446.0,2.90191]
[1719872634077,0.50232839,3446.5,3446.0,2.90191]
[1719872634276,2.90125,3446.8,3446.0,2.90191]
[1719872634610,0.50224606,3446.7,3446.0,2.90191]
[1719872634998,0.50224606,3446.6,3446.1,2.90181]
[1719872635202,2.90103,3447.1,3446.1,2.90181]
[1719872635203,0.50224606,3447.0,3446.1,2.90181]
[1719872635413,0.50224606,3446.9,3446.1,2.90181]
[1719872635714,0.50224606,3446.8,3446.1,2.90181]
[1719872635923,0.50224606,3446.7,3446.1,2.90181]
[1719872636099,0.50224606,3446.6,3446.1,2.90181]
[1719872636412,0.50224606,3446.5,3446.1,2.90181]
[1719872636612,0.50223575,3446.4,3446.1,2.90181]
[1719872636924,2.90107,3447.0,3446.1,2.90181]
[1719872637222,0.50223692,3446.9,3446.1,2.90181]
[1719872637713,0.50221389,3446.8,3446.2,0.05802951]
[1719872637911,0.50221389,3446.7,3446.3,2.90164]
[1719872638217,1.88472041,3446.6,3446.3,2.90164]
[1719872638378,0.50219002,3446.5,3446.4,2.90157]
[1719872638583,1.38250652,3446.6,3446.4,2.90157]
[1719872638987,0.14960373,3446.5,3446.4,2.90157]
[1719872639387,0.6517978,3446.5,3446.4,2.90157]
[1719872639586,2.03430432,3446.5,3446.4,2.90157]
[1719872640127,2.03430432,3446.5,3445.3,2.90245]
[1719872640325,2.03430432,3446.5,3444.5,10.65597978]
[1719872640326,1.38250652,3445.9,3444.5,0.46287978]
[1719872640497,0.50219407,3446.4,3444.5,0.0081403]
[1719872640498,2.90251,3445.3,3444.5,0.0081403]
[1719872640697,2.90279,3445.0,3444.5,0.0081403]
[1719872640895,2.90291,3444.9,3444.5,0.0081403]
[1719872641122,3.05217038,3444.9,3444.5,0.0081403]
[1719872641302,0.50252294,3444.8,3444.5,0.0081403]
[1719872641492,0.50252294,3444.7,3444.5,0.0081403]
[1719872641828,8.41967671,3444.6,3444.5,0.0081403]
[1719872642124,6.52217122,3444.6,3444.5,0.0081403]
[1719872642328,3.55433727,3444.6,3444.5,0.0081403]
[1719872642830,8.56831502,3444.6,3444.5,0.0081403]
[1719872643122,5.95490433,3444.6,3444.5,0.0081403]
[1719872643324,6.45754355,3444.6,3444.5,0.0081403]
[1719872643553,7.10329791,3444.6,3444.5,0.0081403]
[1719872643705,12.11747753,3444.6,3444.5,0.0081403]
[1719872644191,12.11747753,3444.6,3443.5,0.1195146]
[1719872644192,3.0185,3444.5,3443.5,0.1195146]
[1719872644390,3.0185,3444.5,3441.1,0.005]
[1719872644391,2.90462,3442.8,3441.1,0.005]
[1719872644619,1.38057298,3442.2,3441.1,0.005]
[1719872644818,1.38057298,3441.9,3441.1,0.005]
[1719872645022,2.90593,3441.3,3441.1,0.005]
[1719872645226,8.05755922,3441.2,3441.1,0.005]
[1719872645426,2.17337056,3441.2,3440.6,0.16355551]
[1719872645634,1.38010544,3441.0,3440.6,0.16355551]
[1719872645896,2.59,3441.6,3440.6,0.16355551]
[1719872645897,0.1476611,3440.9,3440.6,0.16355551]
[1719872646129,5.81276,3440.7,3440.6,0.16355551]
[1719872646351,5.81276,3440.7,3438.7,3.0]
[1719872646352,1.743,3439.6,3437.2,0.05041852]
[1719872646626,1.37938039,3438.9,3437.0,0.02]
[1719872646930,0.74182369,3438.8,3437.3,3.0]
[1719872647089,1.743,3438.7,3437.1,0.00897072]
[1719872647297,1.743,3437.7,3437.1,0.00897072]
[1719872647501,2.90882,3437.9,3437.1,0.00897072]
[1719872647702,0.49397034,3437.9,3437.1,0.00897072]
[1719872647931,0.14641961,3437.8,3437.2,3.0]
[1719872648131,0.14641961,3437.8,3437.4,2.90909]
[1719872648335,1.37938039,3439.1,3433.7,1.20578756]
[1719872648336,1.0,3435.8,3433.7,1.20578756]
[1719872648639,2.90981,3436.7,3433.2,0.4674316]
[1719872648640,3.0779,3434.8,3433.2,0.4674316]
[1719872648839,1.19049672,3434.7,3433.2,0.4674316]
[1719872649014,0.69023873,3434.7,3433.0,6.97087375]
[1719872649213,3.05171873,3434.7,3433.1,0.69708738]
[1719872649517,3.0,3434.6,3433.0,6.97087375]
[1719872649748,2.91275,3433.2,3433.0,6.97087375]
[1719872649916,2.91234,3433.7,3433.0,6.97087375]
[1719872650116,0.13441685,3433.1,3433.0,6.97087375]
[1719872650318,2.488,3435.9,3433.0,6.97087375]
[1719872650319,2.488,3434.1,3433.0,6.97087375]
[1719872650533,3.04722685,3433.1,3433.0,6.97087375]
[1719872650838,3.04722685,3433.1,3429.8,3.14263661]
[1719872650839,1.0,3431.3,3429.6,0.0898877]
[1719872651011,3.0779,3433.2,3429.6,0.0898877]
[1719872651012,2.9133,3432.6,3429.6,0.0898877]
[1719872651215,1.743,3432.9,3430.8,1.0]
[1719872651434,0.94510004,3432.8,3431.2,2.91437]
[1719872651637,0.94510004,3432.8,3429.7,3.31977002]
[1719872651638,2.91434,3431.3,3430.0,3.0]
[1719872651961,2.91434,3431.3,3429.7,0.00980114]
[1719872651962,1.0,3430.6,3429.7,0.00980114]
[1719872652246,1.743,3430.4,3429.7,0.00980114]
[1719872652405,2.91539,3430.1,3428.0,3.0]
[1719872652603,2.91597,3429.4,3428.1,0.30026448]
[1719872652801,3.0,3431.2,3427.2,0.2]
[1719872652802,2.91658,3428.7,3427.2,0.2]
[1719872653005,2.91629,3429.1,3427.1,2.9179]
[1719872653253,1.743,3429.2,3427.0,2.91798]
[1719872653589,0.13164568,3429.0,3427.1,0.2]
[1719872653708,1.0,3428.6,3426.3,3.0955801]
[1719872654069,3.36480334,3429.1,3427.2,2.91782]
[1719872654070,2.91633,3429.0,3427.2,2.91782]
[1719872654205,2.91543,3430.1,3427.2,2.91782]
[1719872654206,5.65823,3430.3,3430.2,0.005]
[1719872654406,1.0,3432.6,3430.2,0.005]
[1719872654407,2.91444,3431.2,3430.2,0.005]
[1719872654726,2.488,3431.8,3430.2,0.005]
[1719872655046,2.91387,3431.9,3430.2,0.005]
[1719872655047,2.488,3431.1,3430.2,0.005]
[1719872655563,1.743,3430.8,3430.2,0.005]
[1719872655711,2.488,3431.1,3430.2,0.005]
[1719872656118,2.9147,3430.9,3430.2,0.005]
[1719872656317,2.91427,3431.4,3430.2,0.005]
[1719872656574,5.40194,3431.8,3430.2,0.005]
[1719872656856,2.91347,3432.4,3430.2,0.297042]
[1719872657150,2.488,3432.5,3430.8,2.91477]
[1719872657366,2.488,3432.5,3431.2,2.91442]
[1719872657522,2.9128,3433.2,3431.2,2.91442]
[1719872657523,5.4008,3433.2,3431.2,2.91442]
[1719872657854,2.488,3433.2,3431.6,2.91408]
[1719872658356,1.743,3433.0,3431.8,2.91392]
[1719872658659,2.91208,3434.0,3432.7,2.91314]
[1719872658863,5.5297,3434.6,3432.9,2.91298]
[1719872658864,2.91189,3434.2,3432.9,2.91298]
[1719872659047,2.91188,3434.2,3432.2,2.91354]
[1719872659216,2.91172,3434.4,3432.3,2.91349]
[1719872659413,2.91172,3434.4,3431.8,0.291392]
[1719872659414,1.743,3434.3,3432.5,2.91326]
[1719872659612,2.9113,3434.9,3432.4,0.291349]
[1719872659819,2.91112,3435.1,3433.7,2.91229]
[1719872660021,2.91082,3435.5,3433.8,2.91217]
[1719872660249,2.91061,3435.7,3433.9,0.291217]
[1719872660463,2.91061,3435.7,3434.2,2.91186]
[1719872660621,2.91046,3435.9,3434.2,2.91181]
[1719872660820,2.9102,3436.2,3433.5,3.0]
[1719872661118,2.90978,3436.7,3434.0,2.91205]
[1719872661340,2.91045,3435.9,3434.1,3.0]
[1719872661544,1.743,3435.8,3434.7,2.91145]
[1719872661754,1.0,3436.8,3433.9,3.0]
[1719872661755,1.0,3437.1,3433.9,3.591221]
[1719872661916,1.0,3436.9,3434.8,2.91137]
[1719872662122,2.91032,3436.1,3434.8,2.91133]
[1719872662388,2.9107,3435.6,3434.3,2.9118]
[1719872662530,2.9107,3435.6,3434.1,2.91195]
[1719872662531,2.91078,3435.5,3434.1,2.91195]
[1719872662731,2.91078,3435.5,3434.0,3.0]
[1719872662732,2.91078,3435.5,3434.4,2.91171]
[1719872662950,2.91048,3435.9,3434.2,2.91187]
[1719872663155,0.12341839,3435.4,3434.2,2.91187]
[1719872663379,2.91095,3435.3,3433.8,2.91216]
[1719872663523,2.91107,3435.2,3433.8,2.91216]
[1719872663751,3.03448839,3435.2,3433.9,2.91213]
[1719872663978,1.743,3434.7,3432.1,1.165941]
[1719872664289,2.9119,3434.2,3432.6,2.9132]
[1719872664455,2.91198,3434.1,3432.6,2.9132]
[1719872664658,0.12359713,3434.0,3432.6,2.9132]
[1719872665182,4.77866713,3434.0,3432.3,2.91347]
[1719872665381,2.91237,3433.7,3432.3,2.91347]
[1719872665884,0.1235493,3433.6,3432.4,2.91336]
[1719872666385,0.1235493,3433.6,3432.2,2.91357]
[1719872667098,0.1235493,3433.6,3432.3,2.91349]
[1719872667579,0.1235493,3433.6,3432.4,2.91341]
[1719872668089,3.0359593,3433.6,3432.4,2.91341]
[1719872668489,3.0359593,3433.6,3432.3,2.91347]
[1719872668678,3.0359593,3433.6,3432.4,2.91341]
[1719872668873,2.91241,3433.6,3432.0,2.91372]
[1719872669081,0.1235493,3433.5,3432.0,2.91372]
[1719872669595,0.1235493,3433.5,3432.3,2.91348]
[1719872669795,0.1235493,3433.5,3431.9,3.0]
[1719872669994,0.1235493,3433.5,3432.8,2.91307]
[1719872670296,1.0,3435.3,3432.4,2.91337]
[1719872670297,0.12309602,3433.4,3432.7,2.91314]
[1719872670500,2.91206,3434.0,3432.7,2.9131]
[1719872670710,1.37691776,3438.0,3432.4,2.91336]
[1719872670711,0.12309602,3433.3,3432.4,3.0]
[1719872670915,2.91135,3434.9,3432.9,3.0]
[1719872671060,2.91137,3434.8,3433.7,2.91229]
[1719872671622,2.91148,3434.7,3433.7,2.91229]
[1719872671990,2.91129,3434.9,3433.7,2.91229]
[1719872672708,2.91125,3435.0,3433.7,2.91229]
[1719872673368,2.91105,3435.2,3433.9,2.91212]
[1719872673577,1.743,3435.3,3433.9,2.91212]
[1719872673578,2.91116,3435.1,3433.9,2.91212]
[1719872673941,1.743,3435.1,3432.0,0.36]
[1719872674090,2.91166,3434.5,3433.3,2.91263]
[1719872674300,2.9118,3434.3,3433.3,2.91263]
[1719872674494,2.91166,3434.5,3433.3,2.91263]
[1719872674806,1.743,3434.3,3432.7,2.9131]
[1719872675190,2.91191,3434.2,3433.0,2.9129]
[1719872675418,1.743,3434.4,3433.0,2.9129]
[1719872675912,1.743,3434.1,3432.0,0.36]
[1719872676124,2.91324,3432.6,3431.5,2.91412]
[1719872676297,1.743,3432.9,3431.2,2.91435]
[1719872676492,2.91384,3431.9,3431.0,2.91457]
[1719872676799,2.91384,3431.9,3431.0,2.91459]
[1719872676980,2.91397,3431.8,3430.6,2.91488]
[1719872677176,2.91397,3431.8,3430.8,2.91476]
[1719872677375,2.91397,3431.8,3430.3,2.91511]
[1719872677376,2.91418,3431.5,3430.3,2.91511]
[1719872677578,2.91418,3431.5,3430.4,2.9151]
[1719872678248,2.91418,3431.5,3430.2,2.92028]
[1719872678540,2.91418,3431.5,3430.3,0.292028]
[1719872679033,2.91418,3431.5,3430.6,2.91492]
[1719872680319,2.91365,3432.2,3430.6,2.91492]
[1719872680499,2.91365,3432.2,3431.1,2.91449]
[1719872680500,1.37628854,3431.9,3431.1,2.91449]
[1719872680684,1.37628854,3431.9,3430.2,0.005]
[1719872680685,1.37628854,3431.9,3431.3,2.91433]
[1719872680886,1.37628854,3432.1,3431.1,2.9145]
[1719872681181,4.28969854,3432.4,3431.2,2.9144]
[1719872681383,1.88067656,3432.3,3431.3,2.91433]
[1719872681613,0.50438802,3432.3,3431.3,2.91433]
[1719872681819,2.91341,3432.4,3431.3,2.91433]
[1719872682002,2.91341,3432.4,3431.4,2.91426]
[1719872682215,4.28969854,3432.4,3431.4,2.91426]
[1719872682455,2.91341,3432.4,3431.4,2.91426]
[1719872682627,1.88066734,3432.3,3431.4,2.91426]
[1719872682927,4.28969854,3432.4,3431.4,2.91426]
[1719872683095,4.28969854,3432.4,3430.3,3.0]
[1719872683096,2.91414,3431.6,3430.5,2.91494]
[1719872683301,2.91341,3432.4,3430.2,3.005]
[1719872683302,4.29019854,3431.9,3430.9,2.91461]
[1719872683490,4.29019854,3431.9,3431.0,2.91458]
[1719872683491,1.3764161,3431.9,3431.0,2.91458]
[1719872683690,1.88083326,3431.8,3431.0,2.91458]
[1719872684024,0.1170431,3431.7,3431.1,2.9145]
[1719872684246,0.1170431,3431.7,3431.2,2.91436]
[1719872684540,2.91238,3433.7,3431.6,2.91406]
[1719872684541,1.3764161,3431.9,3431.6,2.91406]
[1719872684830,2.91315,3432.7,3431.5,5.82834]
[1719872684831,0.11324203,3431.6,3431.5,5.82834]
[1719872685144,1.3764161,3432.4,3431.9,2.91376]
[1719872685443,0.11324203,3431.6,3431.5,8.74251]
[1719872685588,1.37686325,3432.4,3432.2,2.91352]
[1719872685791,1.37686325,3432.5,3432.3,2.91347]
[1719872686100,1.37686325,3432.6,3432.3,2.91347]
[1719872686323,1.88110007,3432.5,3432.4,2.91341]
[1719872686501,1.37686325,3432.5,3431.2,5.91439]
[1719872686703,0.50423682,3433.4,3431.9,2.91376]
[1719872686704,1.88115433,3432.4,3431.9,2.91376]
[1719872686929,1.88115433,3432.3,3431.9,2.91376]
[1719872687155,1.37689085,3432.0,3431.1,2.91446]
[1719872687324,1.37689085,3432.0,3430.3,2.91516]
[1719872687325,1.3766255,3431.5,3430.8,2.9147]
[1719872687624,1.3766255,3431.3,3431.0,2.91453]
[1719872687839,1.3766255,3431.3,3430.8,2.91476]
[1719872688036,1.88103679,3431.2,3430.8,2.91476]
[1719872688350,0.50441129,3431.1,3430.3,2.91513]
[1719872688562,2.91427,3431.4,3430.3,2.91513]
[1719872688563,1.37623619,3430.7,3430.3,2.91513]
[1719872688773,1.37623619,3430.7,3428.9,2.458904]
[1719872688774,1.37623619,3430.4,3429.5,2.9158]
[1719872689049,3.41942129,3430.6,3429.1,3.6206]
[1719872689050,0.50441129,3430.3,3429.1,3.6206]
[1719872689208,0.50441129,3430.5,3429.7,2.9157]
[1719872689412,0.50441129,3430.4,3429.7,2.9157]
[1719872689742,2.91456,3431.1,3429.7,2.9157]
[1719872689985,0.50461704,3431.0,3429.7,2.9157]
[1719872690123,2.91477,3430.8,3429.7,2.9157]
[1719872690309,1.743,3431.3,3429.7,2.9157]
[1719872690645,1.743,3431.3,3429.5,2.91586]
[1719872690646,2.91511,3430.4,3429.5,2.91586]
[1719872690842,0.50461709,3430.3,3429.5,2.91586]
[1719872691017,0.50461709,3430.3,3429.6,2.91578]
[1719872691421,1.37597197,3430.3,3429.1,6.53674]
[1719872691639,1.88058906,3430.3,3429.1,6.53674]
[1719872691819,1.743,3431.7,3429.1,6.53674]
[1719872691820,1.37597197,3430.6,3430.2,2.92028]
[1719872692040,4.29072197,3430.9,3430.2,0.005]
[1719872692249,1.37597197,3430.5,3430.2,0.005]
[1719872692443,1.37597197,3430.6,3430.2,0.005]
[1719872692623,1.88053325,3430.5,3430.2,0.005]
[1719872692827,1.37622304,3430.6,3430.2,0.005]
[1719872693013,2.91452,3431.1,3430.2,2.92028]
[1719872693218,1.37612124,3430.7,3430.2,2.92028]
[1719872693420,0.50456178,3430.6,3430.2,0.005]
[1719872693647,2.91452,3431.1,3430.2,0.005]
[1719872693648,1.37612124,3430.5,3430.2,0.005]
[1719872694373,1.37612124,3430.6,3430.2,0.005]
[1719872694586,1.37612124,3430.6,3430.2,0.297043]
[1719872694884,1.37612124,3431.0,3430.2,0.005]
[1719872695068,2.91435,3431.3,3430.2,0.005]
[1719872695069,1.37612124,3431.1,3430.2,0.005]
[1719872695236,0.50448273,3431.0,3430.2,0.005]
[1719872695435,1.37612124,3431.1,3430.2,2.92028]
[1719872695668,1.37612124,3431.1,3430.5,2.915]
[1719872695875,2.91435,3431.3,3430.4,2.9151]
[1719872696046,1.37632482,3431.1,3430.5,2.91501]
[1719872696258,2.91373,3432.1,3430.5,2.91501]
[1719872696259,3.92188475,3433.0,3430.6,3.6206]
[1719872696430,7.65456419,3432.9,3430.9,3.0]
[1719872696634,2.62296401,3432.8,3431.9,2.91383]
[1719872696835,2.62296401,3432.7,3432.0,2.91373]
[1719872697081,0.50441909,3432.6,3432.1,2.91365]
[1719872697260,0.50441909,3432.5,3432.2,2.91354]
[1719872697479,2.91279,3433.2,3432.3,2.91345]
[1719872697664,2.62224061,3433.1,3432.4,2.9134]
[1719872697865,2.62224061,3433.0,3432.4,2.9134]
[1719872698054,1.743,3433.8,3432.5,2.91331]
[1719872698055,2.62224061,3432.9,3432.5,2.91331]
[1719872698254,0.50427906,3432.8,3432.5,2.91331]
[1719872698585,2.91248,3433.5,3432.4,2.9134]
[1719872698586,2.91254,3433.5,3432.7,2.91315]
[1719872698768,2.6219625,3433.4,3432.7,2.91315]
[1719872698935,2.62194808,3433.3,3432.7,2.91315]
[1719872699141,0.50421095,3433.2,3432.7,2.91315]
[1719872699340,0.50421095,3433.1,3432.7,2.91315]
[1719872699656,0.50421095,3433.0,3432.7,2.91315]
[1719872699852,0.11379658,3433.1,3432.7,2.91315]
[1719872700050,2.91254,3433.5,3432.7,2.91315]
[1719872700051,0.11379913,3432.9,3432.7,2.91315]
[1719872700263,0.11379913,3432.9,3432.0,2.91375]
[1719872700264,2.91153,3434.7,3433.6,2.91233]
[1719872700434,1.0084219,3435.0,3432.1,3.6206]
[1719872700435,2.91166,3434.5,3432.5,3.0]
[1719872700642,2.91166,3434.5,3432.1,3.6206]
[1719872700643,2.91247,3433.6,3432.4,2.91338]
[1719872700892,2.62114581,3433.5,3432.1,3.6206]
[1719872701051,0.11009914,3434.4,3432.1,3.6206]
[1719872701052,2.62114581,3433.4,3432.7,2.91313]
[1719872701275,2.11706011,3433.3,3432.8,2.91299]
[1719872701611,3.49441188,3433.3,3432.8,0.582612]
[1719872701902,2.91153,3434.7,3433.1,2.91281]
[1719872701903,1.9916669,3433.2,3433.1,2.91281]
[1719872702106,0.11010938,3433.2,3433.1,2.91281]
[1719872702406,2.91153,3434.7,3432.2,2.91357]
[1719872702407,1.3773838,3433.3,3433.0,2.91285]
[1719872702612,1.3773838,3433.3,3432.9,2.91296]
[1719872702911,4.1092208,3433.2,3432.4,2.91338]
[1719872703213,0.61435799,3433.1,3433.0,5.8258]
[1719872703375,0.11020384,3433.1,3433.0,5.8258]
[1719872703893,1.3773838,3433.3,3433.2,2.91273]
[1719872704076,3.49480311,3433.3,3433.2,2.91273]
[1719872704405,4.65446,3434.7,3433.3,2.91263]
[1719872704564,1.37746387,3433.4,3433.3,2.91263]
[1719872705059,1.37746387,3433.5,3433.4,2.91256]
[1719872705168,2.11727148,3433.5,3433.4,2.91256]
[1719872705367,0.50412255,3433.5,3433.4,2.91256]
[1719872705601,0.50411973,3433.5,3433.4,2.91256]
[1719872706283,1.37747702,3433.8,3433.4,2.91256]
[1719872706470,2.91173,3434.4,3432.1,3.6206]
[1719872706471,3.99895208,3433.7,3432.1,3.6206]
[1719872706670,1.37747702,3433.3,3432.7,2.91311]
[1719872706876,2.62147506,3433.6,3432.5,2.9133]
[1719872706877,1.37738954,3433.6,3433.5,8.73741]
[1719872707082,1.37738954,3434.9,3433.7,2.91225]
[1719872707313,1.37738954,3434.9,3432.8,3.0]
[1719872707621,1.88177371,3434.8,3433.5,2.91246]
[1719872707821,1.37778942,3434.9,3434.3,2.91172]
[1719872708023,5.25338867,3435.9,3434.9,2.91127]
[1719872708024,1.37778942,3435.2,3434.9,2.91127]
[1719872708178,1.37778942,3435.2,3433.7,3.6921]
[1719872708179,2.91107,3435.2,3434.3,2.91171]
[1719872708377,1.37778942,3435.3,3434.3,2.91171]
[1719872708607,2.91087,3435.4,3434.3,2.91171]
[1719872708608,2.91105,3435.2,3434.3,2.91171]
[1719872709016,2.9115,3434.7,3432.9,0.3]
[1719872709315,4.28917942,3434.8,3433.4,2.91253]
[1719872709524,2.91155,3434.6,3433.5,2.91247]
[1719872710010,1.37778942,3434.6,3433.8,2.9122]
[1719872710210,4.28925942,3434.7,3433.8,2.9122]
[1719872710422,2.91137,3434.9,3433.9,2.91212]
[1719872710640,0.50405638,3434.8,3434.2,2.91188]
[1719872710793,4.28870181,3435.2,3434.0,2.91205]
[1719872710995,1.88169045,3435.1,3434.1,2.9701267]
[1719872711251,1.37766181,3435.3,3434.6,2.91152]
[1719872711534,2.91071,3435.6,3434.6,2.91152]
[1719872711682,4.28837181,3435.6,3434.6,2.91152]
[1719872711879,1.37766181,3435.6,3434.7,2.91141]
[1719872712110,1.37766181,3435.6,3434.6,2.91152]
[1719872712308,1.49092905,3436.4,3433.0,0.690516]
[1719872712309,3.12066181,3435.7,3433.0,0.690516]
[1719872712511,3.12066181,3434.9,3432.9,3.21297]
[1719872712729,2.91206,3434.0,3431.9,0.0356262]
[1719872712930,1.37766181,3434.6,3431.9,0.0356262]
[1719872712931,1.37766181,3434.6,3433.7,2.91224]
[1719872713105,4.40184905,3435.4,3433.7,2.91224]
[1719872713106,2.91139,3434.8,3433.8,2.91214]
[1719872713305,1.37766181,3435.1,3434.0,2.91197]
[1719872713512,2.91112,3435.1,3434.0,2.91197]
[1719872713730,1.37782543,3435.3,3433.3,6.69608]
[1719872713731,1.37782543,3435.3,3434.2,2.91182]
[1719872714029,0.10685034,3435.2,3434.2,2.91182]